bitfinex/quotes_BTCUSD_20251212
["timestamp","ask_amount","ask_price","bid_price","bid_amount"]
[1765560027442,0.00011579,90523.0,90522.0,0.38545549]
[1765560027661,0.00011579,90523.0,90522.0,0.80648809]
[1765560027862,0.00011579,90523.0,90522.0,0.72617388]
[1765560028088,0.00011579,90523.0,90522.0,0.72717388]
[1765560028627,0.00011579,90523.0,90522.0,0.73017388]
[1765560030776,0.00011579,90523.0,90522.0,0.74773388]
[1765560031022,0.00011579,90523.0,90522.0,0.69771549]
[1765560031221,0.00011579,90523.0,90522.0,0.40701549]
[1765560032407,0.00011579,90523.0,90522.0,0.69771549]
[1765560032940,0.00011579,90523.0,90522.0,0.69171549]
[1765560033149,0.00011579,90523.0,90522.0,0.69471549]
[1765560033515,0.00011579,90523.0,90522.0,0.67715549]
[1765560033662,0.00011579,90523.0,90522.0,0.69771549]
[1765560033865,0.00011579,90523.0,90522.0,0.40701549]
[1765560034453,0.00011579,90523.0,90522.0,0.40401549]
[1765560034653,0.00011579,90523.0,90522.0,0.40701549]
[1765560035628,0.00011579,90523.0,90522.0,0.38945549]
[1765560035833,0.00011579,90523.0,90522.0,0.06601473]
[1765560036349,0.00011579,90523.0,90522.0,0.06301473]
[1765560036775,0.00011579,90523.0,90522.0,0.06501473]
[1765560037070,0.00011579,90523.0,90522.0,0.06301473]
[1765560037300,0.00011579,90523.0,90522.0,0.06401473]
[1765560037494,0.00011579,90523.0,90522.0,0.06701473]
[1765560038246,0.00011579,90523.0,90522.0,0.06401473]
[1765560038463,0.00011579,90523.0,90522.0,0.06501473]
[1765560038861,0.00011579,90523.0,90522.0,0.04745473]
[1765560039085,0.00011579,90523.0,90522.0,0.06501473]
[1765560039236,0.36421701,90523.0,90522.0,0.00265386]
[1765560040452,1.36421701,90523.0,90522.0,0.00265386]
[1765560040690,0.43769411,90523.0,90522.0,0.00265386]
[1765560040881,0.26980411,90523.0,90522.0,0.00265386]
[1765560041079,0.26980411,90523.0,90522.0,0.00065386]
[1765560041580,0.27480411,90523.0,90522.0,0.00065386]
[1765560041991,0.27280411,90523.0,90522.0,0.00065386]
[1765560042221,0.27480411,90523.0,90522.0,0.00065386]
[1765560042433,1.36931569,90523.0,90522.0,0.00065386]
[1765560042650,1.36631569,90523.0,90522.0,0.00065386]
[1765560042822,1.40943068,90523.0,90522.0,0.00065386]
[1765560042977,1.41143068,90523.0,90522.0,0.00065386]
[1765560043382,1.65901569,90523.0,90522.0,0.00065386]
[1765560043613,1.70213068,90523.0,90522.0,0.00065386]
[1765560044211,1.70013068,90523.0,90522.0,0.00065386]
[1765560044367,1.09391569,90523.0,90522.0,0.00065386]
[1765560044579,1.14593408,90523.0,90522.0,0.00065386]
[1765560044806,1.14593408,90523.0,90510.0,0.0004]
[1765560044807,1.22096761,90511.0,90510.0,0.0004]
[1765560045009,1.3303926,90511.0,90510.0,0.0004]
[1765560045264,1.50879022,90511.0,90510.0,0.0004]
[1765560045763,1.46567523,90511.0,90510.0,0.00075673]
[1765560046304,1.75637523,90511.0,90510.0,0.00075673]
[1765560046677,1.75837523,90511.0,90510.0,0.00075673]
[1765560047285,1.76037523,90511.0,90510.0,0.00075673]
[1765560047848,1.75837523,90511.0,90510.0,0.00075673]
[1765560048089,1.76037523,90511.0,90510.0,0.00075673]
[1765560049394,2.05789362,90511.0,90510.0,0.00075673]
[1765560049608,0.01105277,90475.0,90474.0,0.043188]
[1765560049932,0.01105143,90486.0,90481.0,0.01105204]
[1765560050071,0.01105143,90486.0,90484.0,0.043188]
[1765560050271,0.01105131,90487.0,90485.0,0.03673]
[1765560050516,0.01105118,90488.0,90485.0,0.04939442]
[1765560050715,0.01116691,90488.0,90487.0,0.092678]
[1765560051046,0.00011573,90488.0,90487.0,0.33287709]
[1765560051355,0.00011573,90488.0,90487.0,0.40264709]
[1765560051761,0.01104728,90520.0,90517.0,0.01104764]
[1765560051921,0.01104667,90525.0,90524.0,0.043188]
[1765560052104,0.01116287,90525.0,90524.0,0.043188]
[1765560052914,0.01116287,90525.0,90524.0,0.162448]
[1765560053419,0.01116287,90525.0,90519.0,0.0477774]
[1765560053420,0.837552,90520.0,90519.0,0.0909654]
[1765560053623,0.837552,90520.0,90519.0,0.14206827]
[1765560054243,0.837552,90520.0,90519.0,0.13102087]
[1765560054780,0.837552,90520.0,90519.0,0.13202087]
[1765560054933,0.837552,90520.0,90519.0,0.08883287]
[1765560055925,0.837552,90520.0,90519.0,0.13302087]
[1765560056337,0.83831367,90520.0,90519.0,0.13302087]
[1765560056764,0.83831367,90520.0,90519.0,0.08353087]
[1765560057618,0.83831367,90520.0,90519.0,0.08253087]
[1765560057826,0.83831367,90520.0,90519.0,0.001]
[1765560058351,0.83811367,90520.0,90519.0,0.044188]
[1765560058568,0.83811367,90520.0,90519.0,0.182088]
[1765560059006,0.83791367,90520.0,90519.0,0.18370087]
[1765560059209,0.83791367,90520.0,90519.0,0.18470087]
[1765560059364,0.83791367,90520.0,90519.0,0.14131287]
[1765560059564,0.83771367,90520.0,90519.0,0.18350087]
[1765560059769,0.83771367,90520.0,90519.0,0.11473087]
[1765560060019,0.83771367,90520.0,90519.0,0.11453087]
[1765560060369,0.83751367,90520.0,90519.0,0.04480087]
[1765560060516,0.23202856,90507.0,90493.0,0.06977]
[1765560060721,0.25648714,90503.0,90494.0,0.01105045]
[1765560061039,0.26801714,90503.0,90494.0,0.043188]
[1765560061240,0.34019714,90503.0,90488.0,0.043188]
[1765560061443,0.34019714,90503.0,90484.0,0.043188]
[1765560062030,0.34019714,90503.0,90485.0,0.04778155]
[1765560062232,0.34019714,90503.0,90485.0,0.03673]
[1765560062858,0.34019714,90503.0,90485.0,0.04778155]
[1765560063164,0.34119714,90503.0,90490.0,0.043188]
[1765560063314,0.34119714,90503.0,90486.0,0.01105143]
[1765560063315,0.34219714,90503.0,90486.0,0.01105143]
[1765560063513,0.34219714,90503.0,90490.0,0.01105094]
[1765560063754,0.34219714,90503.0,90494.0,0.043188]
[1765560063956,0.34119714,90503.0,90494.0,0.043188]
[1765560064311,0.22398714,90503.0,90494.0,0.043188]
[1765560064506,0.27101714,90503.0,90494.0,0.043188]
[1765560064704,0.34119714,90503.0,90486.0,0.043188]
[1765560064842,0.63189714,90503.0,90481.0,0.0368]
[1765560065051,0.63289714,90503.0,90481.0,0.01756]
[1765560065274,0.63189714,90503.0,90481.0,0.01756]
[1765560065874,1.63189714,90503.0,90481.0,0.01756]
[1765560066100,0.22108486,90463.0,90451.0,0.13820563]
[1765560066244,0.22111174,90452.0,90451.0,0.23675861]
[1765560066443,0.22111174,90452.0,90440.0,0.0004]
[1765560066444,0.22113864,90441.0,90440.0,0.0004]
[1765560066644,0.26816864,90441.0,90440.0,0.0004]
[1765560066882,0.34034864,90441.0,90440.0,0.0004]
[1765560067111,0.67166967,90441.0,90440.0,0.0004]
[1765560067434,1.67166967,90441.0,90440.0,0.00078804]
[1765560067621,0.63104864,90441.0,90440.0,0.00078804]
[1765560067778,0.64860864,90441.0,90440.0,0.00078804]
[1765560067995,1.69862703,90441.0,90440.0,0.00078804]
[1765560068191,1.69862703,90441.0,90420.0,0.0004]
[1765560068192,1.51188755,90421.0,90420.0,0.0004]
[1765560068395,1.73700356,90421.0,90420.0,0.00051573]
[1765560068594,1.73700356,90421.0,90391.0,0.13820563]
[1765560068595,1.56192307,90414.0,90393.0,0.09855298]
[1765560068796,1.64445307,90414.0,90413.0,0.00047896]
[1765560068999,1.87025566,90414.0,90413.0,0.00047896]
[1765560069197,1.66641468,90414.0,90413.0,0.00047896]
[1765560069451,1.68397468,90414.0,90413.0,0.00027896]
[1765560069598,1.60951468,90414.0,90413.0,0.00027896]
[1765560070143,1.62711468,90414.0,90413.0,0.00027896]
[1765560070357,1.84754069,90414.0,90413.0,0.00027896]
[1765560070561,1.84454069,90414.0,90413.0,0.00027896]
[1765560070714,1.73703307,90414.0,90413.0,0.00027896]
[1765560071140,1.68701468,90414.0,90413.0,0.00027896]
[1765560071385,1.68401468,90414.0,90413.0,0.00027896]
[1765560071593,1.73683307,90414.0,90413.0,0.00027896]
[1765560071738,1.73683307,90414.0,90370.0,0.31986357]
[1765560071739,0.0110628,90393.0,90367.0,0.09855298]
[1765560071947,0.01106684,90360.0,90357.0,0.01106721]
[1765560072143,0.04703,90359.0,90357.0,0.00011615]
[1765560072455,0.22114177,90358.0,90357.0,0.00011615]
[1765560072649,0.22094177,90358.0,90357.0,0.00011615]
[1765560073061,0.01106757,90354.0,90352.0,0.04310415]
[1765560073308,0.0110677,90353.0,90350.0,0.0004]
[1765560073621,0.01098287,90360.0,90353.0,0.0110677]
[1765560073770,0.01106635,90364.0,90361.0,0.01106672]
[1765560073970,0.23239557,90364.0,90361.0,0.00161287]
[1765560074174,0.22134667,90356.0,90350.0,0.0004]
[1765560074372,0.23242177,90353.0,90350.0,0.00201287]
[1765560075012,0.01106745,90355.0,90351.0,0.01106794]
[1765560075207,0.01106733,90356.0,90355.0,0.0431041]
[1765560075448,0.10768,90374.0,90355.0,0.04471697]
[1765560075449,0.01106672,90361.0,90355.0,0.04471697]
[1765560075626,0.01106684,90360.0,90355.0,0.05578442]
[1765560075823,0.01106672,90361.0,90357.0,0.01106721]
[1765560076032,0.01106647,90363.0,90362.0,0.0431041]
[1765560076239,0.01106598,90367.0,90364.0,0.0431041]
[1765560076439,0.2323815,90369.0,90364.0,0.04471697]
[1765560076641,0.22132217,90366.0,90364.0,0.04471697]
[1765560076846,0.01106598,90367.0,90364.0,0.04471697]
[1765560077410,0.01106733,90356.0,90352.0,0.01106782]
[1765560077611,0.01106745,90355.0,90352.0,0.00161287]
[1765560078358,0.01086733,90356.0,90352.0,0.01268069]
[1765560078562,0.01106733,90356.0,90352.0,0.00161287]
[1765560078804,0.22135892,90351.0,90350.0,0.0004]
[1765560079768,0.34257892,90351.0,90350.0,0.0004]
[1765560080006,0.34257892,90351.0,90350.0,0.0024]
[1765560081154,0.36021892,90351.0,90350.0,0.0024]
[1765560081354,0.65091892,90351.0,90350.0,0.0024]
[1765560081558,0.65191892,90351.0,90350.0,0.0024]
[1765560081800,0.65191892,90351.0,90350.0,0.0004]
[1765560081973,0.63427892,90351.0,90350.0,0.0004]
[1765560082282,0.65191892,90351.0,90350.0,0.0014]
[1765560082482,0.63427892,90351.0,90350.0,0.0004]
[1765560082736,0.65187892,90351.0,90350.0,0.00492717]
[1765560083286,0.65487892,90351.0,90350.0,0.00492717]
[1765560083480,0.90467892,90351.0,90350.0,0.00492717]
[1765560083683,0.56580892,90351.0,90350.0,0.00492717]
[1765560083893,0.58344892,90351.0,90350.0,0.00492717]
[1765560084107,0.65215892,90351.0,90350.0,0.00492717]
[1765560084806,1.24275892,90351.0,90350.0,0.00492717]
[1765560085242,1.24255892,90351.0,90350.0,0.00492717]
[1765560085811,1.65195892,90351.0,90350.0,0.00492717]
[1765560086017,1.69507391,90351.0,90350.0,0.00492717]
[1765560086218,0.81975892,90351.0,90350.0,0.00492717]
[1765560086435,1.03491892,90351.0,90350.0,0.00492717]
[1765560086650,1.05255892,90351.0,90350.0,0.00492717]
[1765560086864,0.63431892,90351.0,90350.0,0.00492717]
[1765560087065,0.65195892,90351.0,90350.0,0.00492717]
[1765560087879,1.76516865,90351.0,90350.0,0.00492717]
[1765560088087,1.66813164,90351.0,90350.0,0.00492717]
[1765560088294,1.68577164,90351.0,90350.0,0.00492717]
[1765560088497,1.39463164,90351.0,90350.0,0.00492717]
[1765560088700,1.36133164,90351.0,90350.0,0.00492717]
[1765560088919,0.67554269,90351.0,90350.0,0.00492717]
[1765560089129,0.63431892,90351.0,90350.0,0.00492717]
[1765560089339,0.22515892,90351.0,90350.0,0.00492717]
[1765560090143,0.004,90351.0,90350.0,0.00634004]
[1765560090409,0.001,90351.0,90350.0,0.16688414]
[1765560090623,0.04656512,90374.0,90368.0,0.01086586]
[1765560090847,0.01106512,90374.0,90368.0,0.03254287]
[1765560091053,0.011065,90375.0,90374.0,0.0431041]
[1765560091263,0.01106512,90374.0,90373.0,0.0431041]
[1765560091470,0.01106512,90374.0,90373.0,0.04451697]
[1765560091871,0.011065,90375.0,90374.0,0.0431041]
[1765560092083,0.01106439,90380.0,90379.0,0.0431041]
[1765560092242,0.00011635,90380.0,90379.0,0.04451697]
[1765560092438,0.00011635,90380.0,90379.0,0.12279697]
[1765560092644,0.2322414,90391.0,90385.0,0.01106378]
[1765560092843,0.01106329,90389.0,90388.0,0.0431041]
[1765560093063,0.04784,90386.0,90385.0,0.00141287]
[1765560093416,0.01856801,90386.0,90385.0,0.00141287]
[1765560093537,0.23233171,90388.0,90385.0,0.00141287]
[1765560093948,0.2212732,90386.0,90385.0,0.04451697]
[1765560094182,0.29270901,90386.0,90385.0,0.00141287]
[1765560094391,0.2212732,90386.0,90385.0,0.00141287]
[1765560094609,0.0102451,90386.0,90385.0,0.00141287]
[1765560096204,0.0338918,90386.0,90385.0,0.00141287]
[1765560096443,0.0338918,90386.0,90385.0,0.00241287]
[1765560096646,0.0338918,90386.0,90385.0,0.00589625]
[1765560098279,0.0338918,90386.0,90385.0,0.00569625]
[1765560099404,0.0338918,90386.0,90385.0,0.04880035]
[1765560100598,0.0338918,90386.0,90385.0,0.387516]
[1765560100807,0.02942425,90397.0,90394.0,0.01106268]
[1765560101008,0.01106145,90404.0,90395.0,0.0431041]
[1765560101009,0.01028307,90396.0,90395.0,0.0431041]
[1765560102088,0.22125117,90395.0,90394.0,0.001]
[1765560102300,0.22125117,90395.0,90385.0,0.00121287]
[1765560102301,0.2212732,90386.0,90385.0,0.00121287]
[1765560102496,0.23233171,90388.0,90385.0,0.00121287]
[1765560102833,0.2212732,90386.0,90385.0,0.00121287]
[1765560103057,0.23156444,90386.0,90385.0,0.00121287]
[1765560103378,0.01029124,90386.0,90385.0,0.00221287]
[1765560103583,0.01029282,90386.0,90385.0,0.00221287]
[1765560103992,0.01029282,90386.0,90385.0,0.00121287]
[1765560104405,0.23156602,90386.0,90385.0,0.00121287]
[1765560104603,0.23156602,90386.0,90382.0,0.0431041]
[1765560104604,0.22128055,90383.0,90382.0,0.0431041]
[1765560104804,0.22128055,90383.0,90368.0,0.25244571]
[1765560104805,0.22130258,90374.0,90373.0,0.0431041]
[1765560105023,0.27983886,90374.0,90373.0,0.00011635]
[1765560105225,0.42300468,90374.0,90373.0,0.00011635]
[1765560105466,0.37226985,90374.0,90373.0,0.00011635]
[1765560105830,0.25571985,90374.0,90373.0,0.00011635]
[1765560106044,0.30355985,90374.0,90373.0,0.00311635]
[1765560106468,0.30355985,90374.0,90373.0,0.00011635]
[1765560106673,0.30555985,90374.0,90373.0,0.00011635]
[1765560106918,0.23399886,90374.0,90373.0,0.00395751]
[1765560107111,0.01029628,90374.0,90373.0,0.19605161]
[1765560107312,0.01106427,90381.0,90377.0,0.01106476]
[1765560107519,0.01030187,90380.0,90378.0,0.0898341]
[1765560107747,0.01030187,90379.0,90378.0,0.29321474]
[1765560107955,0.01030187,90379.0,90378.0,0.04431697]
[1765560108180,0.01030187,90379.0,90378.0,0.00121287]
[1765560108598,0.01030187,90379.0,90378.0,0.04431697]
[1765560109015,0.01030187,90379.0,90378.0,0.00121287]
[1765560109189,0.01030187,90379.0,90378.0,0.04794287]
[1765560109426,0.01030187,90379.0,90378.0,0.16175697]
[1765560109625,0.01030187,90379.0,90378.0,0.04431697]
[1765560109832,0.01030187,90379.0,90378.0,0.04531697]
[1765560110008,0.01030187,90379.0,90378.0,0.09204697]
[1765560110573,0.01030187,90379.0,90378.0,0.16316697]
[1765560110787,0.01030187,90379.0,90378.0,0.16516697]
[1765560111112,0.01106292,90392.0,90391.0,0.0431041]
[1765560111277,0.04512929,90392.0,90391.0,0.0431041]
[1765560111477,0.03406637,90392.0,90391.0,0.0431041]
[1765560111690,0.01031056,90392.0,90391.0,0.09052697]
[1765560112243,0.01031056,90392.0,90391.0,0.04431697]
[1765560112603,0.01131056,90392.0,90391.0,0.04431697]
[1765560112807,0.01131056,90392.0,90391.0,0.00121287]
[1765560113020,0.23256907,90392.0,90391.0,0.04431697]
[1765560113639,0.23256907,90392.0,90391.0,0.00121287]
[1765560114259,0.01131056,90392.0,90391.0,0.00121287]
[1765560114414,0.01131056,90392.0,90391.0,0.04431697]
[1765560114818,0.01131056,90392.0,90391.0,0.09052697]
[1765560115230,0.01131056,90392.0,90391.0,0.16164697]
[1765560116538,0.01131056,90392.0,90391.0,0.04431697]
[1765560116891,0.01031056,90392.0,90391.0,0.04431697]
[1765560117756,0.01031056,90392.0,90391.0,0.04631697]
[1765560118165,0.01031056,90392.0,90391.0,0.0065174]
[1765560118368,0.01031056,90392.0,90391.0,0.00530453]
[1765560118569,0.02887857,90392.0,90391.0,0.00530453]
[1765560119016,0.07833857,90392.0,90391.0,0.00530453]
[1765560119621,0.05977056,90392.0,90391.0,0.00530453]
[1765560119799,0.07768703,90392.0,90391.0,0.00530453]
[1765560120212,0.14725857,90392.0,90391.0,0.00530453]
[1765560120458,1.52379582,90392.0,90391.0,0.00530453]
[1765560120650,0.22130258,90374.0,90373.0,0.00011635]
[1765560120848,0.26750314,90374.0,90373.0,0.00011635]
[1765560121080,0.26750314,90374.0,90373.0,0.00065265]
[1765560121081,0.38548314,90374.0,90373.0,0.00065265]
[1765560121482,1.71929813,90374.0,90373.0,0.00065265]
[1765560121724,0.85365724,90374.0,90373.0,0.00065265]
[1765560121861,0.22135892,90351.0,90350.0,0.0004]
[1765560122066,0.31681948,90351.0,90350.0,0.0004]
[1765560122516,0.38533948,90351.0,90350.0,0.0004]
[1765560122873,0.31681948,90351.0,90350.0,0.0004]
[1765560123073,0.38533948,90351.0,90350.0,0.0004]
[1765560123319,0.31681948,90351.0,90350.0,0.0004]
[1765560123544,0.26735948,90351.0,90350.0,0.0004]
[1765560123774,0.01131056,90351.0,90350.0,0.0004]
[1765560123976,0.01131056,90351.0,90350.0,0.04471697]
[1765560124186,0.001,90351.0,90350.0,0.04471697]
[1765560124413,0.001,90351.0,90350.0,0.38340834]
[1765560124832,0.001,90351.0,90350.0,0.38440834]
[1765560125244,0.01106745,90355.0,90352.0,0.01106782]
[1765560125427,0.23240482,90360.0,90356.0,0.01106733]
[1765560125647,0.01106635,90364.0,90359.0,0.01106696]
[1765560125858,0.0110661,90366.0,90362.0,0.22133197]
[1765560126061,0.0110661,90366.0,90365.0,0.0431041]
[1765560126804,0.01106574,90369.0,90366.0,0.0110661]
[1765560127025,0.01106574,90369.0,90366.0,0.00121287]
[1765560127215,0.01106525,90373.0,90371.0,0.0431041]
[1765560127585,0.23237285,90372.0,90371.0,0.0431041]
[1765560127783,0.0010311,90392.0,90386.0,0.01106366]
[1765560128063,0.00114741,90392.0,90390.0,0.0431041]
[1765560128271,0.22128299,90382.0,90376.0,0.0431041]
[1765560128479,0.01106402,90383.0,90379.0,0.05416861]
[1765560128686,0.01106366,90386.0,90379.0,0.05416861]
[1765560128687,0.01106353,90387.0,90383.0,0.01106402]
[1765560128895,0.01106378,90385.0,90382.0,0.01106414]
[1765560129101,0.01106366,90386.0,90382.0,0.01106414]
[1765560129324,0.01106366,90386.0,90383.0,0.01106402]
[1765560129539,0.01106366,90386.0,90385.0,0.0431041]
[1765560129982,0.01106341,90388.0,90385.0,0.0431041]
[1765560130392,0.23233284,90388.0,90385.0,0.0431041]
[1765560130771,0.26813284,90388.0,90385.0,0.0431041]
[1765560130976,0.23233751,90386.0,90384.0,0.0431041]
[1765560131183,0.01106378,90385.0,90382.0,0.01106414]
[1765560131401,0.00114741,90392.0,90391.0,0.0431041]
[1765560131610,0.00114741,90392.0,90391.0,0.09052697]
[1765560131814,0.00114741,90392.0,90391.0,0.16164697]
[1765560133616,0.00114741,90392.0,90391.0,0.16264697]
[1765560134012,0.00114741,90392.0,90391.0,0.16164697]
[1765560134265,0.00114741,90392.0,90391.0,0.16364697]
[1765560134614,0.00114741,90392.0,90391.0,0.16564697]
[1765560134985,0.00114741,90392.0,90391.0,0.16364697]
[1765560135155,0.00114741,90392.0,90391.0,0.38290793]
[1765560135350,0.00114741,90392.0,90391.0,0.44092632]
[1765560135972,2.0,90414.0,90413.0,0.55501122]
[1765560136174,2.00038776,90414.0,90413.0,0.62003409]
[1765560136383,2.00038776,90414.0,90413.0,0.69115409]
[1765560137609,2.00038776,90414.0,90413.0,0.69315409]
[1765560137912,2.00038776,90414.0,90413.0,0.70006838]
[1765560138119,2.00038776,90414.0,90413.0,0.74317248]
[1765560138783,2.00038776,90414.0,90413.0,0.74517248]
[1765560139118,2.00038776,90414.0,90413.0,0.74317248]
[1765560139319,2.00038776,90414.0,90413.0,0.79258244]
[1765560139547,2.00038776,90414.0,90413.0,0.79758244]
[1765560139874,2.00038776,90414.0,90413.0,0.79558244]
[1765560140094,2.00038776,90414.0,90413.0,0.80058244]
[1765560140233,2.00038776,90414.0,90413.0,0.79558244]
[1765560140634,1.99648776,90414.0,90413.0,0.80158244]
[1765560140879,1.99648776,90414.0,90413.0,0.79658244]
[1765560141104,1.99648776,90414.0,90413.0,0.80258244]
[1765560141336,1.99648776,90414.0,90413.0,0.79658244]
[1765560141531,1.99648776,90414.0,90413.0,0.79058244]
[1765560141754,1.99714288,90414.0,90413.0,0.79058244]
[1765560141960,1.99714288,90414.0,90413.0,0.79658244]
[1765560142537,1.99714288,90414.0,90413.0,0.79058244]
[1765560142889,1.99714288,90414.0,90413.0,0.80158244]
[1765560143132,1.99714288,90414.0,90413.0,0.79558244]
[1765560143344,1.99714288,90414.0,90413.0,0.77938681]
[1765560143540,1.99714288,90414.0,90413.0,0.69615409]
[1765560144043,1.99714288,90414.0,90413.0,0.47894697]
[1765560144197,1.99714288,90414.0,90413.0,0.09052697]
[1765560144414,1.99714288,90414.0,90413.0,0.11212697]
[1765560144614,1.99714288,90414.0,90413.0,0.18464697]
[1765560145052,1.99714288,90414.0,90413.0,0.18064697]
[1765560145208,1.99714288,90414.0,90413.0,0.18364697]
[1765560145651,1.99714288,90414.0,90413.0,0.18064697]
[1765560146025,1.99714288,90414.0,90413.0,0.16604697]
[1765560146255,1.99714288,90414.0,90413.0,0.18364697]
[1765560146879,1.99714288,90414.0,90413.0,0.18905891]
[1765560147460,1.99714288,90414.0,90413.0,0.2390773]
[1765560147823,1.99714288,90414.0,90413.0,0.52436536]
[1765560148200,1.99714288,90414.0,90413.0,0.55757947]
[1765560148808,1.99714288,90414.0,90413.0,0.55457947]
[1765560149035,1.99714288,90414.0,90413.0,0.55957947]
[1765560149551,1.99714288,90414.0,90413.0,0.55657947]
[1765560149951,1.99714288,90414.0,90413.0,0.56057947]
[1765560150099,1.99714288,90414.0,90413.0,0.55657947]
[1765560150299,1.99714288,90414.0,90413.0,0.55157947]
[1765560150508,1.29912172,90414.0,90413.0,0.57248525]
[1765560150746,0.94503444,90414.0,90413.0,0.65972444]
[1765560150949,0.72803877,90414.0,90413.0,0.65972444]
[1765560151171,0.72803877,90414.0,90413.0,0.65472444]
[1765560151459,0.72803877,90414.0,90413.0,0.65872444]
[1765560151887,0.72803877,90414.0,90413.0,0.65472444]
[1765560152282,0.21922842,90414.0,90413.0,0.65972444]
[1765560152464,0.21922842,90414.0,90413.0,0.65572444]
[1765560152869,0.21922842,90414.0,90413.0,0.65972444]
[1765560155098,0.01105289,90474.0,90469.0,0.0431041]
[1765560155305,0.01105314,90472.0,90470.0,0.02959]
[1765560155473,0.22106531,90471.0,90470.0,0.02959]
[1765560156841,0.23217219,90451.0,90439.0,0.06952]
[1765560156971,0.23217219,90451.0,90420.0,0.00199998]
[1765560156972,0.0110568,90442.0,90440.0,0.0431041]
[1765560157175,0.0110595,90420.0,90417.0,0.03321411]
[1765560157380,0.22121446,90410.0,90409.0,0.02959]
[1765560157608,0.01106182,90401.0,90398.0,0.02959]
[1765560157779,0.23230602,90398.0,90395.0,0.00103088]
[1765560157998,0.23270602,90398.0,90395.0,0.00103088]
[1765560158216,0.23270602,90398.0,90395.0,0.00141864]
[1765560158394,0.26550872,90396.0,90395.0,0.00141864]
[1765560158812,0.0004,90396.0,90395.0,0.00141864]
[1765560159664,0.22122624,90406.0,90395.0,0.04791151]
[1765560159888,0.01106109,90407.0,90402.0,0.0431041]
[1765560160089,0.01106121,90406.0,90405.0,0.0431041]
[1765560160395,0.01106121,90406.0,90400.0,0.01106194]
[1765560160570,0.23227073,90412.0,90410.0,0.0431041]
[1765560160951,0.23227073,90412.0,90403.0,0.01106157]
[1765560160952,0.22123568,90402.0,90400.0,0.00121287]
[1765560161155,0.23230674,90398.0,90391.0,0.00423717]
[1765560161357,0.23230674,90398.0,90382.0,0.01106414]
[1765560161555,0.23230674,90398.0,90387.0,0.0431041]
[1765560162123,0.23230674,90398.0,90387.0,0.05416763]
[1765560162324,0.22124628,90397.0,90387.0,0.0431041]
[1765560163066,0.29266628,90397.0,90381.0,0.00535189]
[1765560163270,0.29306628,90397.0,90380.0,0.01106439]
[1765560163468,0.23229447,90403.0,90379.0,0.0359109]
[1765560163469,0.01106084,90409.0,90396.0,0.1148]
[1765560163676,0.2212267,90405.0,90397.0,0.0883841]
[1765560163911,0.0110617,90402.0,90397.0,0.11918697]
[1765560164107,0.01106157,90403.0,90397.0,0.13024928]
[1765560164300,0.0110617,90402.0,90400.0,0.0431041]
[1765560164501,0.0110617,90402.0,90401.0,0.0431041]
[1765560164706,0.0110617,90402.0,90397.0,0.08714518]
[1765560164707,0.01106121,90406.0,90399.0,0.01106206]
[1765560164969,0.01106121,90406.0,90405.0,0.0431041]
[1765560165327,0.001,90403.0,90402.0,0.0431041]
[1765560165841,0.01106072,90410.0,90405.0,0.01106133]
[1765560166050,0.01106072,90410.0,90405.0,0.01635573]
[1765560166249,0.01106084,90409.0,90404.0,0.01106145]
[1765560166455,0.01106084,90409.0,90407.0,0.0431041]
[1765560166675,0.01106072,90410.0,90405.0,0.01106133]
[1765560166992,0.01306072,90410.0,90409.0,0.0431041]
[1765560167196,0.002,90410.0,90407.0,0.05416519]
[1765560167427,0.01105974,90418.0,90409.0,0.04649287]
[1765560167631,0.01856801,90421.0,90417.0,0.0431041]
[1765560167755,0.23225269,90419.0,90418.0,0.0431041]
[1765560168174,0.01105986,90417.0,90416.0,0.0431041]
[1765560169215,0.01205986,90417.0,90416.0,0.0431041]
[1765560169417,0.01305986,90417.0,90416.0,0.0431041]
[1765560169842,0.002,90417.0,90416.0,0.0431041]
[1765560170992,0.001,90417.0,90416.0,0.0431041]
[1765560171558,0.22121446,90410.0,90409.0,0.00121287]
[1765560171712,0.23230219,90400.0,90395.0,0.00141864]
[1765560171881,0.22124736,90397.0,90395.0,0.00141864]
[1765560172301,0.22124736,90397.0,90396.0,0.0431041]
[1765560172583,0.22124628,90397.0,90396.0,0.0431041]
[1765560172736,0.22124628,90397.0,90395.0,0.00141864]
[1765560172937,0.01106219,90398.0,90397.0,0.0431041]
[1765560173120,0.23230344,90399.0,90395.0,0.00241864]
[1765560173464,0.39190865,90576.0,90399.0,0.01106206]
[1765560173465,0.01106145,90404.0,90399.0,0.01106206]
[1765560173665,0.01106182,90401.0,90398.0,0.04972]
[1765560173880,0.22124138,90399.0,90398.0,0.04972]
[1765560174176,0.01106182,90401.0,90395.0,0.00363151]
[1765560174377,0.23228821,90405.0,90398.0,0.05416629]
[1765560174553,0.01106157,90403.0,90401.0,0.04972]
[1765560174756,0.01106084,90409.0,90408.0,0.0431041]
[1765560174936,0.01106084,90409.0,90404.0,0.06078145]
[1765560175138,0.01106072,90410.0,90409.0,0.0431041]
[1765560176145,0.0110606,90411.0,90410.0,0.0431041]
[1765560176347,0.01063539,90411.0,90410.0,0.0431041]
[1765560176557,0.01063539,90411.0,90410.0,0.0928241]
[1765560176754,0.01063539,90411.0,90410.0,0.04972]
[1765560177124,0.01106035,90413.0,90410.0,0.04972]
[1765560177252,0.01106035,90413.0,90411.0,0.0431041]
[1765560177659,0.0110606,90411.0,90408.0,0.02959]
[1765560177862,0.0110606,90411.0,90410.0,0.0431041]
[1765560178266,0.0120606,90411.0,90410.0,0.0431041]
[1765560178494,0.0120606,90411.0,90402.0,0.22123378]
[1765560178495,0.22124872,90396.0,90370.0,0.0176]
[1765560178829,0.22124872,90396.0,90380.0,0.01106439]
[1765560178830,0.26691872,90396.0,90380.0,0.01106439]
[1765560179034,0.34020872,90396.0,90379.0,0.04065451]
[1765560179170,0.34020872,90396.0,90379.0,0.02959]
[1765560179379,0.34020872,90396.0,90385.0,0.04319778]
[1765560179993,0.34220872,90396.0,90385.0,0.04319778]
[1765560180189,0.26891872,90396.0,90385.0,0.04319778]
[1765560180393,0.22364872,90396.0,90385.0,0.04319778]
[1765560180599,0.22324872,90396.0,90392.0,0.02959]
[1765560180839,0.002,90396.0,90395.0,0.16375929]
[1765560181110,0.004,90396.0,90395.0,0.16375929]
[1765560181307,0.002,90396.0,90395.0,0.00263151]
[1765560181509,0.01106219,90398.0,90397.0,0.04319778]
[1765560181716,0.0110617,90402.0,90397.0,0.05093287]
[1765560181924,0.01106157,90403.0,90401.0,0.04319778]
[1765560182115,0.01106121,90406.0,90405.0,0.04319778]
[1765560183106,0.22120392,90415.0,90407.0,0.05425887]
[1765560183107,0.01106047,90412.0,90407.0,0.05425887]
[1765560183314,0.22121936,90408.0,90407.0,0.04319778]
[1765560183508,0.23227775,90409.0,90408.0,0.04319778]
[1765560183713,0.23228007,90409.0,90407.0,0.04319778]
[1765560184980,0.2212218,90407.0,90406.0,0.07278778]
[1765560185387,0.22124872,90396.0,90395.0,0.04461642]
[1765560185594,0.23230115,90400.0,90399.0,0.04319778]
[1765560185816,0.01106194,90400.0,90399.0,0.11173065]